[Event "TePe Sigeman Chess Tournament 2026"]
[Site "Elite Plaza Hotel, Gustav Adolfs Torg 49, Malmo, Sweden"]
[Date "2026.05.06"]
[Round "6.1"]
[White "Zhu, Jiner"]
[Black "Erigaisi, Arjun"]
[Result "0-1"]
[TimeControl "90 minutes for 40 moves + 30 minutes for the rest of the game + 30 seconds per move from move one."]
[WhiteTitle "GM"]
[BlackTitle "GM"]
[WhiteFideId "8608059"]
[BlackFideId "35009192"]
[WhiteElo "2546"]
[BlackElo "2751"]

1. e4 {[%clk 01:30:55]} {[%emt 00:00:04]} d6 {[%clk 01:30:39]} {[%emt
00:00:20]} 2. d4 {[%clk 01:31:04]} {[%emt 00:00:23]} Nf6 {[%clk 01:31:03]}
{[%emt 00:00:06]} 3. Nc3 {[%clk 01:31:25]} {[%emt 00:00:09]} g6 {[%clk
01:31:26]} {[%emt 00:00:07]} 4. Be3 {[%clk 01:30:10]} {[%emt 00:01:45]} Bg7
{[%clk 01:31:25]} {[%emt 00:00:30]} 5. Nf3 {[%clk 01:29:42]} {[%emt 00:00:58]}
O-O {[%clk 01:30:46]} {[%emt 00:01:09]} 6. Qd2 {[%clk 01:26:52]} {[%emt
00:03:21]} a6 {[%clk 01:29:13]} {[%emt 00:02:04]} 7. Bd3 {[%clk 01:22:05]}
{[%emt 00:05:17]} Nc6 {[%clk 01:20:15]} {[%emt 00:09:28]} 8. d5 {[%clk
01:18:14]} {[%emt 00:04:21]} Ne5 {[%clk 01:20:16]} {[%emt 00:00:29]} 9. Nxe5
{[%clk 01:18:16]} {[%emt 00:00:28]} dxe5 {[%clk 01:20:41]} {[%emt 00:00:05]} 10.
f3 {[%clk 01:17:52]} {[%emt 00:00:54]} e6 {[%clk 01:20:01]} {[%emt 00:01:10]}
11. Bc4 {[%clk 01:07:38]} {[%emt 00:10:44]} b5 {[%clk 01:16:42]} {[%emt
00:03:49]} 12. Bb3 {[%clk 01:07:49]} {[%emt 00:00:19]} b4 {[%clk 01:15:10]}
{[%emt 00:02:02]} 13. Na4 {[%clk 01:06:12]} {[%emt 00:02:07]} exd5 {[%clk
01:14:34]} {[%emt 00:01:06]} 14. exd5 {[%clk 01:06:35]} {[%emt 00:00:07]} e4
{[%clk 01:12:19]} {[%emt 00:02:46]} 15. O-O-O {[%clk 01:02:35]} {[%emt
00:04:30]} exf3 {[%clk 01:09:57]} {[%emt 00:02:52]} 16. gxf3 {[%clk 01:02:59]}
{[%emt 00:00:06]} a5 {[%clk 01:05:58]} {[%emt 00:04:30]} 17. h4 {[%clk
00:47:44]} {[%emt 00:15:45]} Nh5 {[%clk 00:47:48]} {[%emt 00:18:40]} 18. d6
{[%clk 00:40:47]} {[%emt 00:07:27]} Bb7 {[%clk 00:40:37]} {[%emt 00:07:41]} 19.
dxc7 {[%clk 00:30:33]} {[%emt 00:10:44]} Qxc7 {[%clk 00:40:41]} {[%emt
00:00:26]} 20. Qd7 {[%clk 00:30:02]} {[%emt 00:01:01]} Qe5 {[%clk 00:28:34]}
{[%emt 00:12:37]} 21. Qxb7 {[%clk 00:20:16]} {[%emt 00:10:17]} Qxe3+ {[%clk
00:28:58]} {[%emt 00:00:05]} 22. Kb1 {[%clk 00:20:43]} {[%emt 00:00:03]} Qf4
{[%clk 00:26:49]} {[%emt 00:02:40]} 23. Rd7 {[%clk 00:13:10]} {[%emt 00:08:04]}
Rae8 {[%clk 00:22:50]} {[%emt 00:04:29]} 24. Rhd1 {[%clk 00:12:28]} {[%emt
00:01:11]} Qf6 {[%clk 00:16:52]} {[%emt 00:06:28]} 25. Qb5 {[%clk 00:09:35]}
{[%emt 00:03:24]} Qxf3 {[%clk 00:12:50]} {[%emt 00:04:31]} 26. Qxa5 {[%clk
00:06:35]} {[%emt 00:03:31]} Nf6 {[%clk 00:13:10]} {[%emt 00:00:09]} 27. R7d3
{[%clk 00:06:50]} {[%emt 00:00:14]} Qf4 {[%clk 00:10:28]} {[%emt 00:03:12]} 28.
Qg5 {[%clk 00:05:47]} {[%emt 00:01:33]} Qxg5 {[%clk 00:10:53]} {[%emt
00:00:05]} 29. hxg5 {[%clk 00:06:13]} {[%emt 00:00:03]} Ne4 {[%clk 00:11:19]}
{[%emt 00:00:04]} 30. Rd5 {[%clk 00:06:35]} {[%emt 00:00:08]} Re5 {[%clk
00:11:35]} {[%emt 00:00:15]} 31. Nb6 {[%clk 00:03:34]} {[%emt 00:03:31]} Nxg5
{[%clk 00:08:26]} {[%emt 00:03:39]} 32. Rxe5 {[%clk 00:02:30]} {[%emt
00:01:35]} Bxe5 {[%clk 00:08:50]} {[%emt 00:00:05]} 33. Nd7 {[%clk 00:02:33]}
{[%emt 00:00:26]} Re8 {[%clk 00:08:24]} {[%emt 00:00:56]} 34. a4 {[%clk
00:00:59]} {[%emt 00:02:05]} bxa3 {[%clk 00:08:36]} {[%emt 00:00:18]} 35. Nxe5
{[%clk 00:00:43]} {[%emt 00:00:46]} Rxe5 {[%clk 00:09:00]} {[%emt 00:00:06]} 36.
bxa3 {[%clk 00:01:09]} {[%emt 00:00:04]} Kf8 {[%clk 00:07:05]} {[%emt
00:02:25]} 37. Kb2 {[%clk 00:01:17]} {[%emt 00:00:22]} Ke7 {[%clk 00:07:11]}
{[%emt 00:00:24]} 38. a4 {[%clk 00:01:10]} {[%emt 00:00:37]} f5 {[%clk
00:05:32]} {[%emt 00:02:09]} 39. Bd5 {[%clk 00:00:35]} {[%emt 00:01:06]} Kd6
{[%clk 00:03:57]} {[%emt 00:02:04]} 40. c4 {[%clk 00:00:43]} {[%emt 00:00:21]}
Kc5 {[%clk 00:02:54]} {[%emt 00:01:33]} 41. a5 {[%clk 00:00:40]} {[%emt
00:00:33]} Re2+ {[%clk 00:23:51]} {[%emt 00:09:32]} 42. Ka3 {[%clk 00:24:45]}
{[%emt 00:06:25]} Re3+ {[%clk 00:22:47]} {[%emt 00:01:35]} 43. Kb2 {[%clk
00:18:17]} {[%emt 00:06:58]} Ne6 {[%clk 00:23:06]} {[%emt 00:00:11]} 44. Rh1
{[%clk 00:15:21]} {[%emt 00:03:26]} Nf4 {[%clk 00:17:11]} {[%emt 00:06:25]} 45.
Bb7 {[%clk 00:12:19]} {[%emt 00:03:32]} Nd3+ {[%clk 00:13:21]} {[%emt
00:04:20]} 46. Kc2 {[%clk 00:12:23]} {[%emt 00:00:26]} Nb4+ {[%clk 00:13:46]}
{[%emt 00:00:05]} 47. Kd2 {[%clk 00:12:49]} {[%emt 00:00:04]} Ra3 {[%clk
00:08:06]} {[%emt 00:06:10]} 48. Rxh7 {[%clk 00:13:10]} {[%emt 00:00:09]} Rxa5
{[%clk 00:08:29]} {[%emt 00:00:08]} 49. Rg7 {[%clk 00:07:28]} {[%emt 00:06:11]}
Ra7 {[%clk 00:08:20]} {[%emt 00:00:39]} 50. Kc3 {[%clk 00:05:34]} {[%emt
00:02:24]} Ra3+ {[%clk 00:08:06]} {[%emt 00:00:44]} 51. Kd2 {[%clk 00:06:01]}
{[%emt 00:00:03]} Rg3 {[%clk 00:08:15]} {[%emt 00:00:20]} 52. Bc8 {[%clk
00:06:25]} {[%emt 00:00:06]} f4 {[%clk 00:08:17]} {[%emt 00:00:28]} 53. Be6
{[%clk 00:05:20]} {[%emt 00:01:36]} g5 {[%clk 00:07:40]} {[%emt 00:01:07]} 54.
Rb7 {[%clk 00:04:38]} {[%emt 00:01:12]} Rd3+ {[%clk 00:06:30]} {[%emt
00:01:39]} 55. Kc1 {[%clk 00:05:02]} {[%emt 00:00:07]} Re3 {[%clk 00:06:52]}
{[%emt 00:00:09]} 56. Bg8 {[%clk 00:04:16]} {[%emt 00:01:16]} f3 {[%clk
00:06:50]} {[%emt 00:00:31]} 57. Kd2 {[%clk 00:02:42]} {[%emt 00:02:04]} Rd3+
{[%clk 00:02:35]} {[%emt 00:04:46]} 58. Ke1 {[%clk 00:03:06]} {[%emt 00:00:06]}
Rb3 {[%clk 00:02:38]} {[%emt 00:00:27]} 59. Rg7 {[%clk 00:01:57]} {[%emt
00:01:37]} Nd3+ {[%clk 00:01:24]} {[%emt 00:01:46]} 60. Kd2 {[%clk 00:02:19]}
{[%emt 00:00:07]} Ne5 {[%clk 00:01:03]} {[%emt 00:00:51]} 61. Rxg5 {[%clk
00:02:20]} {[%emt 00:00:30]} Kd4 {[%clk 00:01:31]} {[%emt 00:00:02]} 62. Bh7
{[%clk 00:00:51]} {[%emt 00:01:58]} f2 {[%clk 00:01:17]} {[%emt 00:00:45]} 63.
Ke2 {[%clk 00:00:39]} {[%emt 00:00:42]} Rf3 {[%clk 00:01:03]} {[%emt 00:00:43]}
64. Kf1 {[%clk 00:01:03]} {[%emt 00:00:06]} Nxc4 {[%clk 00:01:26]} {[%emt
00:00:08]} 65. Rg4+ {[%clk 00:01:02]} {[%emt 00:00:31]} Kc3 {[%clk 00:01:48]}
{[%emt 00:00:07]} 66. Rxc4+ {[%clk 00:00:39]} {[%emt 00:00:54]} Kxc4 {[%clk
00:02:13]} {[%emt 00:00:05]} 67. Be4 {[%clk 00:00:43]} {[%emt 00:00:26]} Rf4
{[%clk 00:02:34]} 0-1

[Event "TePe Sigeman Chess Tournament 2026"]
[Site "Elite Plaza Hotel, Gustav Adolfs Torg 49, Malmo, Sweden"]
[Date "2026.05.06"]
[Round "6.2"]
[White "Erdogmus, Yagiz Kaan"]
[Black "Abdusattorov, Nodirbek"]
[Result "1/2-1/2"]
[TimeControl "90 minutes for 40 moves + 30 minutes for the rest of the game + 30 seconds per move from move one."]
[WhiteTitle "GM"]
[BlackTitle "GM"]
[WhiteFideId "44599790"]
[BlackFideId "14204118"]
[WhiteElo "2708"]
[BlackElo "2780"]

1. e4 {[%clk 01:30:54]} {[%emt 00:00:05]} c5 {[%clk 01:30:38]} {[%emt
00:00:22]} 2. Nf3 {[%clk 01:31:19]} {[%emt 00:00:05]} d6 {[%clk 01:30:52]}
{[%emt 00:00:16]} 3. d4 {[%clk 01:30:43]} {[%emt 00:01:07]} cxd4 {[%clk
01:31:14]} {[%emt 00:00:07]} 4. Nxd4 {[%clk 01:31:09]} {[%emt 00:00:03]} Nf6
{[%clk 01:31:37]} {[%emt 00:00:07]} 5. Nc3 {[%clk 01:31:35]} {[%emt 00:00:04]}
a6 {[%clk 01:31:58]} {[%emt 00:00:08]} 6. Be2 {[%clk 01:27:39]} {[%emt
00:04:26]} e6 {[%clk 01:32:04]} {[%emt 00:00:24]} 7. f4 {[%clk 01:22:59]}
{[%emt 00:05:10]} Be7 {[%clk 01:29:21]} {[%emt 00:03:13]} 8. Be3 {[%clk
01:09:35]} {[%emt 00:13:55]} e5 {[%clk 01:26:09]} {[%emt 00:03:41]} 9. fxe5
{[%clk 00:51:24]} {[%emt 00:18:41]} dxe5 {[%clk 01:26:30]} {[%emt 00:00:09]} 10.
Nf5 {[%clk 00:51:32]} {[%emt 00:00:23]} Qxd1+ {[%clk 01:26:51]} {[%emt
00:00:08]} 11. Rxd1 {[%clk 00:51:50]} {[%emt 00:00:11]} Bxf5 {[%clk 01:27:17]}
{[%emt 00:00:04]} 12. exf5 {[%clk 00:52:11]} {[%emt 00:00:10]} Bb4 {[%clk
01:27:46]} {[%emt 00:00:02]} 13. Bd2 {[%clk 00:30:19]} {[%emt 00:22:22]} Nc6
{[%clk 01:26:26]} {[%emt 00:01:49]} 14. a3 {[%clk 00:29:21]} {[%emt 00:01:29]}
Bc5 {[%clk 01:16:52]} {[%emt 00:10:03]} 15. Bd3 {[%clk 00:24:17]} {[%emt
00:05:35]} e4 {[%clk 01:03:19]} {[%emt 00:14:03]} 16. Nxe4 {[%clk 00:15:15]}
{[%emt 00:09:33]} Nxe4 {[%clk 01:03:41]} {[%emt 00:00:07]} 17. Bxe4 {[%clk
00:15:44]} {[%emt 00:00:01]} O-O-O {[%clk 01:04:01]} {[%emt 00:00:11]} 18. Bxc6
{[%clk 00:10:10]} {[%emt 00:06:03]} bxc6 {[%clk 01:04:21]} {[%emt 00:00:09]} 19.
Ke2 {[%clk 00:09:55]} {[%emt 00:00:46]} Rd5 {[%clk 00:59:56]} {[%emt 00:04:56]}
20. g4 {[%clk 00:09:04]} {[%emt 00:01:21]} Re8+ {[%clk 00:57:52]} {[%emt
00:02:33]} 21. Kf3 {[%clk 00:09:21]} {[%emt 00:00:13]} Red8 {[%clk 00:58:04]}
{[%emt 00:00:18]} 22. Ke2 {[%clk 00:09:36]} {[%emt 00:00:15]} Re5+ {[%clk
00:57:12]} {[%emt 00:01:23]} 23. Kf3 {[%clk 00:09:59]} {[%emt 00:00:07]} Red5
{[%clk 00:57:38]} {[%emt 00:00:04]} 24. Ke2 {[%clk 00:10:26]} {[%emt 00:00:03]}
Re8+ {[%clk 00:58:04]} {[%emt 00:00:04]} 25. Kf3 {[%clk 00:10:53]} {[%emt
00:00:04]} Red8 {[%clk 00:58:32]} {[%emt 00:00:02]} 26. Ke2 {[%clk 00:11:19]}
{[%emt 00:00:04]} 1/2-1/2

[Event "TePe Sigeman Chess Tournament 2026"]
[Site "Elite Plaza Hotel, Gustav Adolfs Torg 49, Malmo, Sweden"]
[Date "2026.05.06"]
[Round "6.3"]
[White "Woodward, Andy"]
[Black "Carlsen, Magnus"]
[Result "0-1"]
[TimeControl "90 minutes for 40 moves + 30 minutes for the rest of the game + 30 seconds per move from move one."]
[WhiteTitle "GM"]
[BlackTitle "GM"]
[WhiteFideId "30953499"]
[BlackFideId "1503014"]
[WhiteElo "2635"]
[BlackElo "2840"]

1. d4 {[%clk 01:30:56]} {[%emt 00:00:03]} Nf6 {[%clk 01:30:31]} {[%emt
00:00:30]} 2. c4 {[%clk 01:31:05]} {[%emt 00:00:21]} g6 {[%clk 01:27:20]}
{[%emt 00:03:42]} 3. Nc3 {[%clk 01:31:23]} {[%emt 00:00:12]} Bg7 {[%clk
01:27:45]} {[%emt 00:00:04]} 4. e4 {[%clk 01:31:45]} {[%emt 00:00:08]} d6
{[%clk 01:28:13]} {[%emt 00:00:03]} 5. Be2 {[%clk 01:32:05]} {[%emt 00:00:10]}
O-O {[%clk 01:28:24]} {[%emt 00:00:19]} 6. Be3 {[%clk 01:32:25]} {[%emt
00:00:10]} a5 {[%clk 01:27:40]} {[%emt 00:01:14]} 7. Nf3 {[%clk 01:30:24]}
{[%emt 00:02:30]} Ng4 {[%clk 01:27:41]} {[%emt 00:00:28]} 8. Bg5 {[%clk
01:26:40]} {[%emt 00:04:15]} h6 {[%clk 01:25:51]} {[%emt 00:02:20]} 9. Bc1
{[%clk 01:26:47]} {[%emt 00:00:23]} e5 {[%clk 01:12:27]} {[%emt 00:13:54]} 10.
O-O {[%clk 01:25:58]} {[%emt 00:01:19]} Nf6 {[%clk 01:07:33]} {[%emt 00:05:25]}
11. Be3 {[%clk 01:16:17]} {[%emt 00:10:10]} Ng4 {[%clk 01:07:57]} {[%emt
00:00:06]} 12. Bc1 {[%clk 01:16:23]} {[%emt 00:00:24]} Nd7 {[%clk 01:05:00]}
{[%emt 00:03:26]} 13. h3 {[%clk 00:57:41]} {[%emt 00:19:13]} Ngf6 {[%clk
01:05:09]} {[%emt 00:00:21]} 14. Be3 {[%clk 00:57:54]} {[%emt 00:00:17]} exd4
{[%clk 00:52:33]} {[%emt 00:13:06]} 15. Nxd4 {[%clk 00:57:36]} {[%emt
00:00:48]} Nc5 {[%clk 00:48:54]} {[%emt 00:04:09]} 16. f3 {[%clk 00:53:06]}
{[%emt 00:05:00]} Nh5 {[%clk 00:49:11]} {[%emt 00:00:13]} 17. Qd2 {[%clk
00:41:21]} {[%emt 00:12:16]} g5 {[%clk 00:49:27]} {[%emt 00:00:13]} 18. Bd1
{[%clk 00:36:49]} {[%emt 00:05:02]} Be6 {[%clk 00:45:11]} {[%emt 00:04:46]} 19.
b3 {[%clk 00:35:46]} {[%emt 00:01:34]} a4 {[%clk 00:26:38]} {[%emt 00:19:03]}
20. Bc2 {[%clk 00:34:06]} {[%emt 00:02:10]} axb3 {[%clk 00:23:33]} {[%emt
00:03:35]} 21. axb3 {[%clk 00:34:27]} {[%emt 00:00:08]} Rxa1 {[%clk 00:23:52]}
{[%emt 00:00:11]} 22. Rxa1 {[%clk 00:34:45]} {[%emt 00:00:13]} Be5 {[%clk
00:24:06]} {[%emt 00:00:16]} 23. Ra7 {[%clk 00:28:24]} {[%emt 00:06:51]} c6
{[%clk 00:18:01]} {[%emt 00:06:35]} 24. Nce2 {[%clk 00:27:08]} {[%emt
00:01:46]} Nf4 {[%clk 00:11:02]} {[%emt 00:07:28]} 25. Bf2 {[%clk 00:08:52]}
{[%emt 00:18:46]} Nxe2+ {[%clk 00:06:45]} {[%emt 00:04:47]} 26. Nxe2 {[%clk
00:09:20]} {[%emt 00:00:03]} Qf6 {[%clk 00:07:03]} {[%emt 00:00:11]} 27. Be3
{[%clk 00:08:48]} {[%emt 00:01:02]} Bxh3 {[%clk 00:05:19]} {[%emt 00:02:14]} 28.
b4 {[%clk 00:04:09]} {[%emt 00:05:10]} Nd7 {[%clk 00:03:24]} {[%emt 00:02:24]}
29. Rxb7 {[%clk 00:03:41]} {[%emt 00:00:59]} Be6 {[%clk 00:03:07]} {[%emt
00:00:47]} 30. Nd4 {[%clk 00:04:00]} {[%emt 00:00:11]} Ra8 {[%clk 00:03:07]}
{[%emt 00:00:30]} 31. Nxe6 {[%clk 00:01:03]} {[%emt 00:03:27]} Qxe6 {[%clk
00:02:40]} {[%emt 00:00:56]} 32. Bd3 {[%clk 00:00:32]} {[%emt 00:01:01]} Ra1+
{[%clk 00:02:10]} {[%emt 00:00:59]} 33. Kf2 {[%clk 00:01:01]} {[%emt 00:00:01]}
Nf6 {[%clk 00:02:17]} {[%emt 00:00:23]} 34. Ra7 {[%clk 00:00:55]} {[%emt
00:00:37]} Rh1 {[%clk 00:01:50]} {[%emt 00:00:56]} 35. Ke2 {[%clk 00:00:32]}
{[%emt 00:00:53]} Nh5 {[%clk 00:01:56]} {[%emt 00:00:23]} 36. Qa2 {[%clk
00:00:31]} {[%emt 00:00:32]} g4 {[%clk 00:02:05]} {[%emt 00:00:20]} 37. f4
{[%clk 00:00:31]} {[%emt 00:00:31]} Ra1 {[%clk 00:00:58]} {[%emt 00:01:36]} 38.
Qxa1 {[%clk 00:00:31]} {[%emt 00:00:31]} Bxa1 {[%clk 00:01:22]} {[%emt
00:00:06]} 39. Rxa1 {[%clk 00:00:58]} {[%emt 00:00:04]} Ng3+ {[%clk 00:01:43]}
{[%emt 00:00:08]} 40. Kd2 {[%clk 00:01:21]} {[%emt 00:00:07]} Nxe4+ {[%clk
00:01:57]} {[%emt 00:00:15]} 41. Kc2 {[%clk 00:01:21]} {[%emt 00:00:30]} f5
{[%clk 00:29:27]} {[%emt 00:03:00]} 42. b5 {[%clk 00:31:22]} {[%emt 00:00:29]}
cxb5 {[%clk 00:28:04]} {[%emt 00:01:53]} 43. Ra8+ {[%clk 00:31:45]} {[%emt
00:00:07]} Kg7 {[%clk 00:28:21]} {[%emt 00:00:12]} 44. cxb5 {[%clk 00:32:10]}
{[%emt 00:00:06]} Qd5 {[%clk 00:28:12]} {[%emt 00:00:37]} 45. Rc8 {[%clk
00:28:10]} {[%emt 00:04:31]} Nf2 {[%clk 00:22:55]} {[%emt 00:05:47]} 46. Rc7+
{[%clk 00:25:22]} {[%emt 00:03:19]} Kg6 {[%clk 00:23:12]} {[%emt 00:00:11]} 47.
Bc4 {[%clk 00:25:24]} {[%emt 00:00:29]} Qd1+ {[%clk 00:21:41]} {[%emt
00:02:01]} 48. Kb2 {[%clk 00:25:49]} {[%emt 00:00:05]} d5 {[%clk 00:21:58]}
{[%emt 00:00:12]} 0-1

[Event "TePe Sigeman Chess Tournament 2026"]
[Site "Elite Plaza Hotel, Gustav Adolfs Torg 49, Malmo, Sweden"]
[Date "2026.05.06"]
[Round "6.4"]
[White "Van Foreest, Jorden"]
[Black "Grandelius, Nils"]
[Result "1/2-1/2"]
[TimeControl "90 minutes for 40 moves + 30 minutes for the rest of the game + 30 seconds per move from move one."]
[WhiteTitle "GM"]
[BlackTitle "GM"]
[WhiteFideId "1039784"]
[BlackFideId "1710400"]
[WhiteElo "2735"]
[BlackElo "2662"]

1. e4 {[%clk 01:30:54]} {[%emt 00:00:04]} e5 {[%clk 01:30:40]} {[%emt
00:00:21]} 2. Nf3 {[%clk 01:30:42]} {[%emt 00:00:42]} Nc6 {[%clk 01:30:47]}
{[%emt 00:00:22]} 3. Bc4 {[%clk 01:30:55]} {[%emt 00:00:17]} Nf6 {[%clk
01:30:22]} {[%emt 00:00:55]} 4. d3 {[%clk 01:31:18]} {[%emt 00:00:08]} Bc5
{[%clk 01:30:04]} {[%emt 00:00:48]} 5. O-O {[%clk 01:30:55]} {[%emt 00:00:53]}
d6 {[%clk 01:29:20]} {[%emt 00:01:13]} 6. c3 {[%clk 01:31:04]} {[%emt
00:00:22]} O-O {[%clk 01:28:34]} {[%emt 00:01:15]} 7. Re1 {[%clk 01:28:15]}
{[%emt 00:03:20]} Bb6 {[%clk 01:27:59]} {[%emt 00:01:05]} 8. Bb3 {[%clk
01:22:00]} {[%emt 00:06:45]} Ne7 {[%clk 01:27:32]} {[%emt 00:00:56]} 9. Nbd2
{[%clk 01:21:59]} {[%emt 00:00:32]} Ng6 {[%clk 01:27:35]} {[%emt 00:00:26]} 10.
Nc4 {[%clk 01:20:34]} {[%emt 00:01:56]} h6 {[%clk 01:19:37]} {[%emt 00:08:28]}
11. Bc2 {[%clk 01:18:54]} {[%emt 00:02:11]} c6 {[%clk 01:16:21]} {[%emt
00:03:45]} 12. Nxb6 {[%clk 01:18:59]} {[%emt 00:00:25]} axb6 {[%clk 01:16:26]}
{[%emt 00:00:24]} 13. d4 {[%clk 01:17:54]} {[%emt 00:01:35]} b5 {[%clk
01:08:00]} {[%emt 00:08:57]} 14. h3 {[%clk 01:15:11]} {[%emt 00:03:12]} Re8
{[%clk 01:01:48]} {[%emt 00:06:42]} 15. a3 {[%clk 01:14:02]} {[%emt 00:01:39]}
Qc7 {[%clk 00:52:29]} {[%emt 00:09:49]} 16. Be3 {[%clk 01:07:35]} {[%emt
00:06:57]} Be6 {[%clk 00:47:39]} {[%emt 00:05:20]} 17. Nd2 {[%clk 01:06:58]}
{[%emt 00:01:07]} Rad8 {[%clk 00:46:49]} {[%emt 00:01:19]} 18. Qf3 {[%clk
01:06:02]} {[%emt 00:01:26]} Qe7 {[%clk 00:38:12]} {[%emt 00:09:08]} 19. Rad1
{[%clk 00:57:53]} {[%emt 00:08:38]} Nh4 {[%clk 00:36:39]} {[%emt 00:02:03]} 20.
Qe2 {[%clk 00:57:20]} {[%emt 00:01:03]} Ng6 {[%clk 00:36:52]} {[%emt 00:00:17]}
21. Nf1 {[%clk 00:51:20]} {[%emt 00:06:30]} Bc4 {[%clk 00:34:28]} {[%emt
00:02:54]} 22. Qd2 {[%clk 00:50:19]} {[%emt 00:01:32]} Nh5 {[%clk 00:27:12]}
{[%emt 00:07:46]} 23. Ng3 {[%clk 00:40:36]} {[%emt 00:10:13]} Nxg3 {[%clk
00:25:21]} {[%emt 00:02:21]} 24. fxg3 {[%clk 00:41:01]} {[%emt 00:00:05]} exd4
{[%clk 00:21:55]} {[%emt 00:03:57]} 25. cxd4 {[%clk 00:41:01]} {[%emt
00:00:29]} Be6 {[%clk 00:21:08]} {[%emt 00:01:17]} 26. Qf2 {[%clk 00:37:57]}
{[%emt 00:03:34]} Rc8 {[%clk 00:16:40]} {[%emt 00:04:58]} 27. Bf4 {[%clk
00:26:34]} {[%emt 00:11:52]} Rcd8 {[%clk 00:12:51]} {[%emt 00:04:19]} 28. b4
{[%clk 00:22:26]} {[%emt 00:04:39]} d5 {[%clk 00:07:46]} {[%emt 00:05:35]} 29.
e5 {[%clk 00:21:46]} {[%emt 00:01:10]} Rf8 {[%clk 00:07:53]} {[%emt 00:00:23]}
30. Qe3 {[%clk 00:14:47]} {[%emt 00:07:30]} f5 {[%clk 00:04:20]} {[%emt
00:04:02]} 31. exf6 {[%clk 00:09:26]} {[%emt 00:05:51]} Rxf6 {[%clk 00:04:49]}
{[%emt 00:00:01]} 32. Bxg6 {[%clk 00:05:14]} {[%emt 00:04:43]} Rxg6 {[%clk
00:05:17]} {[%emt 00:00:01]} 33. g4 {[%clk 00:05:35]} {[%emt 00:00:09]} Re8
{[%clk 00:04:40]} {[%emt 00:01:07]} 34. Rd2 {[%clk 00:04:51]} {[%emt 00:01:15]}
Qd7 {[%clk 00:03:44]} {[%emt 00:01:26]} 35. Be5 {[%clk 00:04:48]} {[%emt
00:00:32]} Bf7 {[%clk 00:03:59]} {[%emt 00:00:15]} 36. Qg3 {[%clk 00:02:52]}
{[%emt 00:02:26]} Rge6 {[%clk 00:02:32]} {[%emt 00:01:58]} 37. Rf1 {[%clk
00:02:59]} {[%emt 00:00:23]} Bg6 {[%clk 00:02:43]} {[%emt 00:00:19]} 38. Rdf2
{[%clk 00:03:26]} {[%emt 00:00:04]} Be4 {[%clk 00:01:43]} {[%emt 00:01:29]} 39.
h4 {[%clk 00:02:41]} {[%emt 00:01:15]} b6 {[%clk 00:01:16]} {[%emt 00:00:58]}
40. h5 {[%clk 00:01:33]} {[%emt 00:01:38]} Qe7 {[%clk 00:00:54]} {[%emt
00:00:52]} 41. Rf4 {[%clk 00:01:07]} {[%emt 00:00:56]} c5 {[%clk 00:18:42]}
{[%emt 00:12:42]} 42. g5 {[%clk 00:24:19]} {[%emt 00:07:18]} Qxg5 {[%clk
00:15:57]} {[%emt 00:03:15]} 43. Qxg5 {[%clk 00:13:32]} {[%emt 00:11:17]} hxg5
{[%clk 00:16:21]} {[%emt 00:00:06]} 44. Rf7 {[%clk 00:13:59]} {[%emt 00:00:03]}
R6e7 {[%clk 00:08:19]} {[%emt 00:08:32]} 45. Rxe7 {[%clk 00:14:21]} {[%emt
00:00:09]} Rxe7 {[%clk 00:08:46]} {[%emt 00:00:03]} 46. Bd6 {[%clk 00:14:21]}
{[%emt 00:00:30]} Rf7 {[%clk 00:09:09]} {[%emt 00:00:07]} 47. bxc5 {[%clk
00:14:44]} {[%emt 00:00:07]} bxc5 {[%clk 00:09:19]} {[%emt 00:00:20]} 48. dxc5
{[%clk 00:14:46]} {[%emt 00:00:29]} Rxf1+ {[%clk 00:09:41]} {[%emt 00:00:08]}
49. Kxf1 {[%clk 00:15:14]} {[%emt 00:00:03]} d4 {[%clk 00:09:51]} {[%emt
00:00:20]} 50. Be5 {[%clk 00:14:58]} {[%emt 00:00:46]} d3 {[%clk 00:10:14]}
{[%emt 00:00:08]} 51. Bc3 {[%clk 00:15:24]} {[%emt 00:00:04]} Kh7 {[%clk
00:09:57]} {[%emt 00:00:47]} 52. Kf2 {[%clk 00:15:16]} {[%emt 00:00:38]} Kh6
{[%clk 00:04:19]} {[%emt 00:06:07]} 53. g4 {[%clk 00:15:32]} {[%emt 00:00:14]}
g6 {[%clk 00:04:30]} {[%emt 00:00:19]} 54. Ke3 {[%clk 00:15:46]} {[%emt
00:00:16]} Bc6 {[%clk 00:04:53]} {[%emt 00:00:07]} 55. hxg6 {[%clk 00:16:10]}
{[%emt 00:00:07]} Kxg6 {[%clk 00:05:19]} {[%emt 00:00:03]} 56. Kxd3 {[%clk
00:16:32]} {[%emt 00:00:08]} Kf7 {[%clk 00:05:26]} {[%emt 00:00:23]} 57. Kd4
{[%clk 00:16:17]} 1/2-1/2